[Event "Titled Tuesday Blitz February 15 Early 2022"]
[White "Lauridsen, Jesper Morch"]
[Black "Baches Garcia, Guillermo"]
[WhiteFideId "1401890"]
[BlackFideId "2209764"]
[WhiteElo "2195"]
[BlackElo "2465"]
[Result "1/2-1/2"]
[Round "02"]
[TimeControl "180+1"]
[Date "2022.02.15"]
[WhiteClock "0:00:16"]
[BlackClock "0:00:17"]

1. e4 {[%clk 0:03:00]}  c5 {[%clk 0:03:00]} 2. Nf3 {[%clk 0:03:00]}  d6 {[%clk 0:03:00]} 3. d4 {[%clk 0:03:01]}  cxd4 {[%clk 0:03:01]} 4. Nxd4 {[%clk 0:03:01]}  Nf6 {[%clk 0:03:01]} 5. Nc3 {[%clk 0:03:02]}  Nc6 {[%clk 0:03:01]} 6. Bc4 {[%clk 0:03:00]}  Bd7 {[%clk 0:03:00]} 7. Be3 {[%clk 0:03:00]}  Ng4 {[%clk 0:03:00]} 8. O-O {[%clk 0:02:53]}  Nxe3 {[%clk 0:02:54]} 9. fxe3 {[%clk 0:02:43]}  Ne5 {[%clk 0:02:50]} 10. Qh5 {[%clk 0:02:37]}  e6 {[%clk 0:02:22]} 11. Bxe6 {[%clk 0:02:15]}  Bxe6 {[%clk 0:02:07]} 12. Nxe6 {[%clk 0:02:14]}  g6 {[%clk 0:01:52]} 13. Qxe5 {[%clk 0:02:03]}  dxe5 {[%clk 0:01:47]} 14. Nxd8 {[%clk 0:02:02]}  Rxd8 {[%clk 0:01:46]} 15. Nd5 {[%clk 0:02:02]}  Bc5 {[%clk 0:01:43]} 16. Nf6+ {[%clk 0:01:30]}  Kf8 {[%clk 0:01:33]} 17. Nd5 {[%clk 0:01:25]}  Kg7 {[%clk 0:01:30]} 18. c3 {[%clk 0:01:11]}  f5 {[%clk 0:01:23]} 19. b4 {[%clk 0:01:06]}  fxe4 {[%clk 0:01:10]} 20. c4 {[%clk 0:00:29]}  Bb6 {[%clk 0:01:02]} 21. Nxb6 {[%clk 0:00:24]}  axb6 {[%clk 0:01:03]} 22. Rad1 {[%clk 0:00:24]}  Rd3 {[%clk 0:01:00]} 23. Rxd3 {[%clk 0:00:21]}  exd3 {[%clk 0:01:01]} 24. e4 {[%clk 0:00:20]}  Rd8 {[%clk 0:00:55]} 25. Kf2 {[%clk 0:00:20]}  Rd4 {[%clk 0:00:48]} 26. Ke3 {[%clk 0:00:18]}  Rxc4 {[%clk 0:00:41]} 27. a3 {[%clk 0:00:18]}  Rc3 {[%clk 0:00:37]} 28. Rd1 {[%clk 0:00:17]}  Rxa3 {[%clk 0:00:35]} 29. Rxd3 {[%clk 0:00:15]}  Rxd3+ {[%clk 0:00:28]} 30. Kxd3 {[%clk 0:00:15]}  b5 {[%clk 0:00:28]} 31. h4 {[%clk 0:00:15]}  h5 {[%clk 0:00:25]} 32. Ke3 {[%clk 0:00:14]}  Kf6 {[%clk 0:00:25]} 33. Kf3 {[%clk 0:00:14]}  g5 {[%clk 0:00:18]} 34. g3 {[%clk 0:00:13]}  g4+ {[%clk 0:00:18]} 35. Ke3 {[%clk 0:00:14]}  Ke6 {[%clk 0:00:18]} 36. Kd3 {[%clk 0:00:14]}  Kd6 {[%clk 0:00:19]} 37. Kc3 {[%clk 0:00:14]}  Kc6 {[%clk 0:00:19]} 38. Kb3 {[%clk 0:00:14]}  Kb6 {[%clk 0:00:17]} 39. Kc3 {[%clk 0:00:14]}  Kc6 {[%clk 0:00:17]} 40. Kb3 {[%clk 0:00:14]}  Kd6 {[%clk 0:00:17]} 41. Kc3 {[%clk 0:00:14]}  Ke7 {[%clk 0:00:17]} 42. Kd3 {[%clk 0:00:15]}  Kd8 {[%clk 0:00:17]} 43. Ke3 {[%clk 0:00:15]}  Kc7 {[%clk 0:00:17]} 44. Kd3 {[%clk 0:00:16]}  Kd6 {[%clk 0:00:17]} 45. Kc3 {[%clk 0:00:16]} 1/2-1/2


[Site "https://www.chess.com"]

[Event "Titled Tuesday Blitz February 15 Early 2022"]
[White "Ljukin, Sergei"]
[Black "Bongo Akanga Ndjila, Barthelemy"]
[WhiteFideId "14102200"]
[BlackFideId "10609431"]
[WhiteElo "2312"]
[BlackElo "1803"]
[Result "1-0"]
[Round "02"]
[TimeControl "180+1"]
[Date "2022.02.15"]
[WhiteClock "0:01:42"]
[BlackClock "0:01:03"]

1. e4 {[%clk 0:03:00]}  g6 {[%clk 0:02:49]} 2. d4 {[%clk 0:02:59]}  d6 {[%clk 0:02:49]} 3. Nc3 {[%clk 0:02:59]}  Bg7 {[%clk 0:02:47]} 4. f4 {[%clk 0:02:59]}  c6 {[%clk 0:02:47]} 5. Nf3 {[%clk 0:02:59]}  Bg4 {[%clk 0:02:46]} 6. Be3 {[%clk 0:02:56]}  b5 {[%clk 0:02:43]} 7. h3 {[%clk 0:02:56]}  Bxf3 {[%clk 0:02:42]} 8. Qxf3 {[%clk 0:02:56]}  Nf6 {[%clk 0:02:43]} 9. Bd3 {[%clk 0:02:54]}  b4 {[%clk 0:02:41]} 10. Ne2 {[%clk 0:02:53]}  O-O {[%clk 0:02:38]} 11. O-O {[%clk 0:02:52]}  a5 {[%clk 0:02:37]} 12. c4 {[%clk 0:02:52]}  Qc7 {[%clk 0:02:30]} 13. e5 {[%clk 0:02:48]}  Nfd7 {[%clk 0:02:19]} 14. Rad1 {[%clk 0:02:45]}  c5 {[%clk 0:02:13]} 15. Be4 {[%clk 0:02:34]}  Ra7 {[%clk 0:02:11]} 16. exd6 {[%clk 0:02:32]}  exd6 {[%clk 0:02:10]} 17. f5 {[%clk 0:02:31]}  cxd4 {[%clk 0:02:05]} 18. Nxd4 {[%clk 0:02:05]}  Ra6 {[%clk 0:01:41]} 19. b3 {[%clk 0:01:56]}  Nc5 {[%clk 0:01:23]} 20. Bd5 {[%clk 0:01:51]}  Be5 {[%clk 0:01:12]} 21. Bh6 {[%clk 0:01:46]}  Bg7 {[%clk 0:01:11]} 22. Bxg7 {[%clk 0:01:45]}  Kxg7 {[%clk 0:01:11]} 23. f6+ {[%clk 0:01:45]}  Kg8 {[%clk 0:01:09]} 24. Qf4 {[%clk 0:01:43]}  Kh8 {[%clk 0:01:06]} 25. Qh6 {[%clk 0:01:42]}  Rg8 {[%clk 0:01:06]} 26. Rf4 {[%clk 0:01:42]}  Nbd7 {[%clk 0:01:04]} 27. Qxh7+ {[%clk 0:01:42]}  Kxh7 {[%clk 0:01:03]} 28. Rh4# {[%clk 0:01:42]} 1-0


[Site "https://www.chess.com"]

[Event "Titled Tuesday Blitz February 15 Early 2022"]
[White "Lohani, Sujana"]
[Black "Aaditya Dhingra"]
[WhiteFideId "12311987"]
[BlackFideId "25678191"]
[WhiteElo "1691"]
[BlackElo "1789"]
[Result "0-1"]
[Round "02"]
[TimeControl "180+1"]
[Date "2022.02.15"]
[WhiteClock "0:00:45"]
[BlackClock "0:01:09"]

1. d4 {[%clk 0:03:00]}  Nf6 {[%clk 0:02:57]} 2. Nf3 {[%clk 0:03:00]}  g6 {[%clk 0:02:57]} 3. c4 {[%clk 0:02:59]}  Bg7 {[%clk 0:02:55]} 4. Nc3 {[%clk 0:02:59]}  d5 {[%clk 0:02:55]} 5. cxd5 {[%clk 0:02:58]}  Nxd5 {[%clk 0:02:56]} 6. e4 {[%clk 0:02:58]}  Nxc3 {[%clk 0:02:54]} 7. bxc3 {[%clk 0:02:59]}  c5 {[%clk 0:02:54]} 8. Be3 {[%clk 0:02:59]}  Nc6 {[%clk 0:02:51]} 9. h3 {[%clk 0:02:55]}  Qa5 {[%clk 0:02:47]} 10. Qd2 {[%clk 0:02:53]}  O-O {[%clk 0:02:38]} 11. Be2 {[%clk 0:02:32]}  Rd8 {[%clk 0:02:33]} 12. O-O {[%clk 0:02:32]}  cxd4 {[%clk 0:02:29]} 13. cxd4 {[%clk 0:02:31]}  Qxd2 {[%clk 0:02:29]} 14. Nxd2 {[%clk 0:02:30]}  Nxd4 {[%clk 0:02:28]} 15. Bxd4 {[%clk 0:02:26]}  Rxd4 {[%clk 0:02:25]} 16. Rad1 {[%clk 0:02:24]}  Be6 {[%clk 0:02:21]} 17. a3 {[%clk 0:02:19]}  Rad8 {[%clk 0:02:18]} 18. Nf3 {[%clk 0:02:16]}  Rxd1 {[%clk 0:02:13]} 19. Rxd1 {[%clk 0:02:15]}  Rxd1+ {[%clk 0:02:08]} 20. Bxd1 {[%clk 0:02:16]}  Bc4 {[%clk 0:01:51]} 21. Nd2 {[%clk 0:02:10]}  Bd3 {[%clk 0:01:48]} 22. Bb3 {[%clk 0:02:09]}  b5 {[%clk 0:01:42]} 23. f3 {[%clk 0:01:57]}  Bd4+ {[%clk 0:01:41]} 24. Kh2 {[%clk 0:01:56]}  a5 {[%clk 0:01:40]} 25. Bd5 {[%clk 0:01:45]}  a4 {[%clk 0:01:30]} 26. g3 {[%clk 0:01:36]}  Bc5 {[%clk 0:01:28]} 27. e5 {[%clk 0:01:14]}  e6 {[%clk 0:01:24]} 28. Bc6 {[%clk 0:01:09]}  Bxa3 {[%clk 0:01:24]} 29. Ne4 {[%clk 0:01:09]}  Bb2 {[%clk 0:01:22]} 30. Nf6+ {[%clk 0:01:01]}  Kg7 {[%clk 0:01:18]} 31. f4 {[%clk 0:01:00]}  a3 {[%clk 0:01:15]} 32. Ne8+ {[%clk 0:00:49]}  Kf8 {[%clk 0:01:15]} 33. Nd6 {[%clk 0:00:48]}  a2 {[%clk 0:01:14]} 34. Nxb5 {[%clk 0:00:46]}  Bxb5 {[%clk 0:01:08]} 35. Bxb5 {[%clk 0:00:45]}  a1=Q {[%clk 0:01:09]} 0-1


[Site "https://www.chess.com"]

[Event "Titled Tuesday Blitz February 15 Early 2022"]
[White "Lopez Mulet, Inigo"]
[Black "Hoffmann, Asa"]
[WhiteFideId "22235620"]
[BlackFideId "2001470"]
[WhiteElo "2315"]
[BlackElo "2117"]
[Result "0-1"]
[Round "02"]
[TimeControl "180+1"]
[Date "2022.02.15"]
[WhiteClock "0:01:28"]
[BlackClock "0:01:28"]

1. Nf3 {[%clk 0:02:58]}  d6 {[%clk 0:02:58]} 2. b3 {[%clk 0:02:58]}  e5 {[%clk 0:02:58]} 3. Bb2 {[%clk 0:02:59]}  Nf6 {[%clk 0:02:57]} 4. g3 {[%clk 0:02:58]}  Be7 {[%clk 0:02:57]} 5. Bg2 {[%clk 0:02:59]}  c6 {[%clk 0:02:56]} 6. O-O {[%clk 0:03:00]}  O-O {[%clk 0:02:55]} 7. d3 {[%clk 0:03:00]}  h6 {[%clk 0:02:54]} 8. Nbd2 {[%clk 0:03:00]}  Be6 {[%clk 0:02:54]} 9. a4 {[%clk 0:03:01]}  Qd7 {[%clk 0:02:54]} 10. a5 {[%clk 0:03:02]}  Bh3 {[%clk 0:02:53]} 11. Re1 {[%clk 0:03:01]}  Bxg2 {[%clk 0:02:53]} 12. Kxg2 {[%clk 0:03:02]}  Na6 {[%clk 0:02:52]} 13. c4 {[%clk 0:03:00]}  Rfe8 {[%clk 0:02:50]} 14. Bc3 {[%clk 0:02:59]}  Nc7 {[%clk 0:02:47]} 15. Qc2 {[%clk 0:02:56]}  Rac8 {[%clk 0:02:46]} 16. Qb2 {[%clk 0:02:57]}  a6 {[%clk 0:02:45]} 17. Nb1 {[%clk 0:02:53]}  Bf8 {[%clk 0:02:44]} 18. Bd2 {[%clk 0:02:53]}  e4 {[%clk 0:02:41]} 19. Nd4 {[%clk 0:02:50]}  c5 {[%clk 0:02:35]} 20. Nc2 {[%clk 0:02:49]}  d5 {[%clk 0:02:35]} 21. Nc3 {[%clk 0:02:47]}  exd3 {[%clk 0:02:19]} 22. exd3 {[%clk 0:02:41]}  d4 {[%clk 0:02:18]} 23. Na4 {[%clk 0:02:39]}  Bd6 {[%clk 0:02:10]} 24. Rxe8+ {[%clk 0:02:35]}  Rxe8 {[%clk 0:02:08]} 25. Re1 {[%clk 0:02:34]}  Ne6 {[%clk 0:02:05]} 26. Nb6 {[%clk 0:02:31]}  Qc6+ {[%clk 0:02:04]} 27. f3 {[%clk 0:02:25]}  Bc7 {[%clk 0:01:53]} 28. Na4 {[%clk 0:02:15]}  Ng5 {[%clk 0:01:50]} 29. Rxe8+ {[%clk 0:02:13]}  Qxe8 {[%clk 0:01:50]} 30. Bxg5 {[%clk 0:01:50]}  Qe2+ {[%clk 0:01:42]} 31. Kh3 {[%clk 0:01:37]}  Qf1+ {[%clk 0:01:35]} 32. Kh4 {[%clk 0:01:36]}  hxg5+ {[%clk 0:01:34]} 33. Kxg5 {[%clk 0:01:37]}  Qxf3 {[%clk 0:01:32]} 34. h3 {[%clk 0:01:28]}  Qh5# {[%clk 0:01:28]} 0-1


[Site "https://www.chess.com"]

[Event "Titled Tuesday Blitz February 15 Early 2022"]
[White "Loy, Konstantin"]
[Black "Boruchovsky, Avital"]
[WhiteFideId "14122499"]
[BlackFideId "2800055"]
[WhiteElo "2084"]
[BlackElo "2469"]
[Result "0-1"]
[Round "02"]
[TimeControl "180+1"]
[Date "2022.02.15"]
[WhiteClock "0:00:06"]
[BlackClock "0:01:07"]

1. e4 {[%clk 0:02:59]}  c6 {[%clk 0:02:58]} 2. d4 {[%clk 0:02:59]}  d5 {[%clk 0:02:59]} 3. exd5 {[%clk 0:03:00]}  cxd5 {[%clk 0:02:59]} 4. c4 {[%clk 0:03:00]}  Nf6 {[%clk 0:02:58]} 5. Nc3 {[%clk 0:03:01]}  Nc6 {[%clk 0:02:55]} 6. Bg5 {[%clk 0:03:00]}  dxc4 {[%clk 0:02:28]} 7. Bxc4 {[%clk 0:02:59]}  e6 {[%clk 0:02:03]} 8. Nf3 {[%clk 0:02:57]}  Be7 {[%clk 0:02:02]} 9. O-O {[%clk 0:02:56]}  O-O {[%clk 0:02:01]} 10. a3 {[%clk 0:02:49]}  b6 {[%clk 0:01:55]} 11. Qd3 {[%clk 0:02:47]}  Bb7 {[%clk 0:01:53]} 12. Rac1 {[%clk 0:02:43]}  Nd5 {[%clk 0:01:42]} 13. Be3 {[%clk 0:01:35]}  Nxc3 {[%clk 0:01:30]} 14. bxc3 {[%clk 0:01:23]}  Bxa3 {[%clk 0:01:29]} 15. Ra1 {[%clk 0:01:14]}  Be7 {[%clk 0:01:29]} 16. Bb3 {[%clk 0:01:10]}  Bf6 {[%clk 0:01:28]} 17. Bc2 {[%clk 0:01:09]}  g6 {[%clk 0:01:28]} 18. Bh6 {[%clk 0:01:08]}  Re8 {[%clk 0:01:27]} 19. Rfd1 {[%clk 0:01:02]}  Ne7 {[%clk 0:01:26]} 20. c4 {[%clk 0:00:48]}  Nf5 {[%clk 0:01:24]} 21. Be3 {[%clk 0:00:39]}  Bxf3 {[%clk 0:01:19]} 22. gxf3 {[%clk 0:00:39]}  Qc7 {[%clk 0:01:16]} 23. Ba4 {[%clk 0:00:25]}  Red8 {[%clk 0:01:15]} 24. Rac1 {[%clk 0:00:23]}  Nxd4 {[%clk 0:01:10]} 25. Bxd4 {[%clk 0:00:14]}  Rxd4 {[%clk 0:01:09]} 26. Qe2 {[%clk 0:00:07]}  Rad8 {[%clk 0:01:08]} 27. Rxd4 {[%clk 0:00:07]}  Rxd4 {[%clk 0:01:08]} 28. Bb5 {[%clk 0:00:06]}  Rh4 {[%clk 0:01:07]} 0-1


[Site "https://www.chess.com"]

[Event "Titled Tuesday Blitz February 15 Early 2022"]
[White "Makarian, Rudik"]
[Black "Sadovsky, Artem"]
[WhiteFideId "44105681"]
[BlackFideId "4155840"]
[WhiteElo "2486"]
[BlackElo "2369"]
[Result "1/2-1/2"]
[Round "02"]
[TimeControl "180+1"]
[Date "2022.02.15"]
[WhiteClock "0:00:04"]
[BlackClock "0:00:11"]

1. d4 {[%clk 0:02:57]}  g6 {[%clk 0:02:59]} 2. c4 {[%clk 0:02:57]}  Bg7 {[%clk 0:02:59]} 3. Nc3 {[%clk 0:02:58]}  d6 {[%clk 0:02:59]} 4. Nf3 {[%clk 0:02:57]}  e5 {[%clk 0:03:00]} 5. dxe5 {[%clk 0:02:52]}  dxe5 {[%clk 0:03:01]} 6. Qxd8+ {[%clk 0:02:52]}  Kxd8 {[%clk 0:03:01]} 7. g3 {[%clk 0:02:53]}  f6 {[%clk 0:03:01]} 8. Bg2 {[%clk 0:02:53]}  c6 {[%clk 0:03:02]} 9. O-O {[%clk 0:02:52]}  Be6 {[%clk 0:03:02]} 10. Rd1+ {[%clk 0:02:52]}  Nd7 {[%clk 0:03:02]} 11. Be3 {[%clk 0:02:49]}  Kc7 {[%clk 0:02:58]} 12. b4 {[%clk 0:02:47]}  Bh6 {[%clk 0:02:57]} 13. Rac1 {[%clk 0:02:16]}  Bxe3 {[%clk 0:02:53]} 14. fxe3 {[%clk 0:02:17]}  Ne7 {[%clk 0:02:37]} 15. Nd2 {[%clk 0:02:02]}  a5 {[%clk 0:02:28]} 16. b5 {[%clk 0:01:45]}  Nc5 {[%clk 0:02:26]} 17. Nde4 {[%clk 0:01:45]}  Nxe4 {[%clk 0:02:20]} 18. Nxe4 {[%clk 0:01:46]}  Rhf8 {[%clk 0:02:10]} 19. Rd6 {[%clk 0:00:57]}  Bf5 {[%clk 0:02:00]} 20. Rxf6 {[%clk 0:00:54]}  Bxe4 {[%clk 0:02:00]} 21. Rxf8 {[%clk 0:00:53]}  Rxf8 {[%clk 0:02:01]} 22. Bxe4 {[%clk 0:00:54]}  Rd8 {[%clk 0:01:49]} 23. Rf1 {[%clk 0:00:48]}  cxb5 {[%clk 0:01:45]} 24. cxb5 {[%clk 0:00:48]}  Kb6 {[%clk 0:01:31]} 25. Rf6+ {[%clk 0:00:44]}  Kxb5 {[%clk 0:01:29]} 26. Bxb7 {[%clk 0:00:41]}  Nf5 {[%clk 0:01:26]} 27. Re6 {[%clk 0:00:37]}  Rd1+ {[%clk 0:01:06]} 28. Kf2 {[%clk 0:00:37]}  Ra1 {[%clk 0:01:02]} 29. Rxe5+ {[%clk 0:00:37]}  Kb4 {[%clk 0:00:58]} 30. Bd5 {[%clk 0:00:33]}  a4 {[%clk 0:00:54]} 31. Bg8 {[%clk 0:00:33]}  Nd6 {[%clk 0:00:51]} 32. Re6 {[%clk 0:00:25]}  Nb5 {[%clk 0:00:48]} 33. Bxh7 {[%clk 0:00:22]}  Rxa2 {[%clk 0:00:46]} 34. Bxg6 {[%clk 0:00:22]}  a3 {[%clk 0:00:45]} 35. Ra6 {[%clk 0:00:19]}  Nc3 {[%clk 0:00:35]} 36. h4 {[%clk 0:00:19]}  Rxe2+ {[%clk 0:00:34]} 37. Kf3 {[%clk 0:00:20]}  a2 {[%clk 0:00:34]} 38. Bf7 {[%clk 0:00:20]}  Rc2 {[%clk 0:00:25]} 39. h5 {[%clk 0:00:19]}  Na4 {[%clk 0:00:25]} 40. Bxa2 {[%clk 0:00:19]}  Rxa2 {[%clk 0:00:26]} 41. h6 {[%clk 0:00:18]}  Rh2 {[%clk 0:00:27]} 42. g4 {[%clk 0:00:18]}  Nc5 {[%clk 0:00:27]} 43. Rb6+ {[%clk 0:00:18]}  Ka5 {[%clk 0:00:27]} 44. Rc6 {[%clk 0:00:17]}  Kb5 {[%clk 0:00:27]} 45. Rf6 {[%clk 0:00:17]}  Rh3+ {[%clk 0:00:26]} 46. Kf4 {[%clk 0:00:15]}  Nd3+ {[%clk 0:00:24]} 47. Ke4 {[%clk 0:00:15]}  Kc4 {[%clk 0:00:22]} 48. g5 {[%clk 0:00:14]}  Nc5+ {[%clk 0:00:23]} 49. Kf5 {[%clk 0:00:14]}  Kd5 {[%clk 0:00:20]} 50. Kg6 {[%clk 0:00:13]}  Ne4 {[%clk 0:00:19]} 51. Rf8 {[%clk 0:00:12]}  Rg3 {[%clk 0:00:19]} 52. h7 {[%clk 0:00:12]}  Rxg5+ {[%clk 0:00:16]} 53. Kh6 {[%clk 0:00:13]}  Rg3 {[%clk 0:00:16]} 54. Rf5+ {[%clk 0:00:11]}  Ke6 {[%clk 0:00:14]} 55. Rh5 {[%clk 0:00:12]}  Kf7 {[%clk 0:00:12]} 56. Rf5+ {[%clk 0:00:10]}  Ke6 {[%clk 0:00:12]} 57. Rf4 {[%clk 0:00:09]}  Rh3+ {[%clk 0:00:11]} 58. Kg7 {[%clk 0:00:09]}  Nd6 {[%clk 0:00:08]} 59. h8=Q {[%clk 0:00:09]}  Nf5+ {[%clk 0:00:05]} 60. Kg8 {[%clk 0:00:06]}  Rxh8+ {[%clk 0:00:05]} 61. Kxh8 {[%clk 0:00:07]}  Ke5 {[%clk 0:00:06]} 62. Ra4 {[%clk 0:00:05]}  Nxe3 {[%clk 0:00:06]} 63. Kg7 {[%clk 0:00:06]}  Nd5 {[%clk 0:00:06]} 64. Kg6 {[%clk 0:00:06]}  Ke6 {[%clk 0:00:06]} 65. Re4+ {[%clk 0:00:06]}  Kd6 {[%clk 0:00:06]} 66. Re1 {[%clk 0:00:06]}  Nc7 {[%clk 0:00:07]} 67. Kf5 {[%clk 0:00:06]}  Nd5 {[%clk 0:00:08]} 68. Rd1 {[%clk 0:00:06]}  Kc5 {[%clk 0:00:08]} 69. Ke5 {[%clk 0:00:07]}  Nc3 {[%clk 0:00:08]} 70. Rd8 {[%clk 0:00:07]}  Kc4 {[%clk 0:00:09]} 71. Rc8+ {[%clk 0:00:07]}  Kd3 {[%clk 0:00:10]} 72. Rc5 {[%clk 0:00:07]}  Ne2 {[%clk 0:00:09]} 73. Rd5+ {[%clk 0:00:07]}  Ke3 {[%clk 0:00:09]} 74. Ra5 {[%clk 0:00:07]}  Kd3 {[%clk 0:00:10]} 75. Ra4 {[%clk 0:00:06]}  Nc3 {[%clk 0:00:11]} 76. Rd4+ {[%clk 0:00:06]}  Ke3 {[%clk 0:00:11]} 77. Rd8 {[%clk 0:00:05]}  Ne2 {[%clk 0:00:11]} 78. Rh8 {[%clk 0:00:05]}  Kf3 {[%clk 0:00:11]} 79. Rh3+ {[%clk 0:00:05]}  Ng3 {[%clk 0:00:12]} 80. Rh4 {[%clk 0:00:06]}  Ke3 {[%clk 0:00:12]} 81. Ra4 {[%clk 0:00:06]}  Kf3 {[%clk 0:00:11]} 82. Ra3+ {[%clk 0:00:06]}  Kg4 {[%clk 0:00:12]} 83. Re3 {[%clk 0:00:06]}  Nh5 {[%clk 0:00:12]} 84. Re1 {[%clk 0:00:06]}  Ng3 {[%clk 0:00:11]} 85. Re3 {[%clk 0:00:05]}  Nh5 {[%clk 0:00:11]} 86. Ra3 {[%clk 0:00:05]}  Ng3 {[%clk 0:00:10]} 87. Ra2 {[%clk 0:00:04]}  Kf3 {[%clk 0:00:11]} 88. Ra3+ {[%clk 0:00:04]}  Kg4 {[%clk 0:00:11]} 1/2-1/2


[Site "https://www.chess.com"]

[Event "Titled Tuesday Blitz February 15 Early 2022"]
[White "Mamedyarov, Shakhriyar"]
[Black "Nazari, Arad"]
[WhiteFideId "13401319"]
[BlackFideId "12577324"]
[WhiteElo "2769"]
[BlackElo "2120"]
[Result "1-0"]
[Round "02"]
[TimeControl "180+1"]
[Date "2022.02.15"]
[WhiteClock "0:00:37"]
[BlackClock "0:00:06"]

1. c4 {[%clk 0:03:00]}  c5 {[%clk 0:02:58]} 2. g3 {[%clk 0:02:58]}  Nc6 {[%clk 0:02:58]} 3. Bg2 {[%clk 0:02:58]}  g6 {[%clk 0:02:59]} 4. Nc3 {[%clk 0:02:58]}  Bg7 {[%clk 0:02:59]} 5. Nf3 {[%clk 0:02:58]}  e5 {[%clk 0:03:00]} 6. O-O {[%clk 0:02:50]}  Nge7 {[%clk 0:03:00]} 7. Rb1 {[%clk 0:02:50]}  O-O {[%clk 0:02:59]} 8. a3 {[%clk 0:02:50]}  Rb8 {[%clk 0:02:43]} 9. b4 {[%clk 0:02:47]}  cxb4 {[%clk 0:02:42]} 10. axb4 {[%clk 0:02:48]}  a6 {[%clk 0:02:34]} 11. b5 {[%clk 0:02:34]}  axb5 {[%clk 0:02:29]} 12. Nxb5 {[%clk 0:02:29]}  d5 {[%clk 0:02:24]} 13. cxd5 {[%clk 0:02:29]}  Nxd5 {[%clk 0:02:24]} 14. Ba3 {[%clk 0:02:29]}  Re8 {[%clk 0:02:15]} 15. Nd6 {[%clk 0:02:28]}  Bf8 {[%clk 0:02:04]} 16. Nxe8 {[%clk 0:02:19]}  Bxa3 {[%clk 0:02:03]} 17. Qb3 {[%clk 0:02:20]}  Be7 {[%clk 0:01:41]} 18. Nxe5 {[%clk 0:02:01]}  Nxe5 {[%clk 0:00:57]} 19. Qxd5 {[%clk 0:02:01]}  Qxd5 {[%clk 0:00:56]} 20. Bxd5 {[%clk 0:02:02]}  Bf5 {[%clk 0:00:52]} 21. Nc7 {[%clk 0:01:52]}  Bxb1 {[%clk 0:00:51]} 22. Rxb1 {[%clk 0:01:51]}  b6 {[%clk 0:00:42]} 23. d4 {[%clk 0:01:50]}  Nd7 {[%clk 0:00:32]} 24. Nb5 {[%clk 0:01:50]}  Nf6 {[%clk 0:00:31]} 25. Bb3 {[%clk 0:01:48]}  Ne4 {[%clk 0:00:28]} 26. Rc1 {[%clk 0:01:45]}  Nd6 {[%clk 0:00:24]} 27. Nxd6 {[%clk 0:01:30]}  Bxd6 {[%clk 0:00:24]} 28. e4 {[%clk 0:01:31]}  b5 {[%clk 0:00:22]} 29. e5 {[%clk 0:01:30]}  Be7 {[%clk 0:00:22]} 30. Rc7 {[%clk 0:01:31]}  Kf8 {[%clk 0:00:23]} 31. d5 {[%clk 0:01:29]}  Bd8 {[%clk 0:00:18]} 32. Ra7 {[%clk 0:01:23]}  Bb6 {[%clk 0:00:17]} 33. Ra6 {[%clk 0:01:19]}  Bd4 {[%clk 0:00:14]} 34. e6 {[%clk 0:01:17]}  fxe6 {[%clk 0:00:14]} 35. dxe6 {[%clk 0:01:18]}  Ke7 {[%clk 0:00:13]} 36. Kg2 {[%clk 0:01:16]}  b4 {[%clk 0:00:12]} 37. Rc6 {[%clk 0:01:15]}  Be5 {[%clk 0:00:11]} 38. f4 {[%clk 0:01:14]}  Bd6 {[%clk 0:00:11]} 39. Ra6 {[%clk 0:01:14]}  Rc8 {[%clk 0:00:11]} 40. Rb6 {[%clk 0:00:50]}  Rc3 {[%clk 0:00:10]} 41. Bd5 {[%clk 0:00:50]}  Rc2+ {[%clk 0:00:09]} 42. Kf3 {[%clk 0:00:50]}  Rc5 {[%clk 0:00:10]} 43. Ke4 {[%clk 0:00:50]}  Rc7 {[%clk 0:00:09]} 44. g4 {[%clk 0:00:50]}  h6 {[%clk 0:00:09]} 45. h4 {[%clk 0:00:48]}  Rc1 {[%clk 0:00:08]} 46. f5 {[%clk 0:00:44]}  gxf5+ {[%clk 0:00:08]} 47. gxf5 {[%clk 0:00:45]}  Re1+ {[%clk 0:00:09]} 48. Kf3 {[%clk 0:00:45]}  Re5 {[%clk 0:00:08]} 49. f6+ {[%clk 0:00:42]}  Kxf6 {[%clk 0:00:04]} 50. Rxd6 {[%clk 0:00:42]}  Re1 {[%clk 0:00:03]} 51. Rb6 {[%clk 0:00:40]}  Rd1 {[%clk 0:00:04]} 52. Ke4 {[%clk 0:00:39]}  Re1+ {[%clk 0:00:04]} 53. Kd4 {[%clk 0:00:39]}  Rd1+ {[%clk 0:00:04]} 54. Kc5 {[%clk 0:00:40]}  Rc1+ {[%clk 0:00:05]} 55. Bc4 {[%clk 0:00:40]}  Rh1 {[%clk 0:00:06]} 56. Rxb4 {[%clk 0:00:35]}  Rxh4 {[%clk 0:00:06]} 57. Rb7 {[%clk 0:00:36]}  Rh1 {[%clk 0:00:06]} 58. Rf7+ {[%clk 0:00:36]}  Kg6 {[%clk 0:00:05]} 59. Bd3+ {[%clk 0:00:36]}  Kg5 {[%clk 0:00:05]} 60. e7 {[%clk 0:00:37]}  Re1 {[%clk 0:00:06]} 61. Bb5 {[%clk 0:00:37]}  h5 {[%clk 0:00:06]} 1-0


[Site "https://www.chess.com"]

[Event "Titled Tuesday Blitz February 15 Early 2022"]
[White "Matinian, Nikita"]
[Black "Kalogridis, Antonios"]
[WhiteFideId "24129100"]
[BlackFideId "25833901"]
[WhiteElo "2422"]
[BlackElo "1495"]
[Result "1-0"]
[Round "02"]
[TimeControl "180+1"]
[Date "2022.02.15"]
[WhiteClock "0:02:15"]
[BlackClock "0:01:42"]

1. e4 {[%clk 0:03:00]}  c6 {[%clk 0:02:58]} 2. Nc3 {[%clk 0:03:00]}  d5 {[%clk 0:02:59]} 3. Nf3 {[%clk 0:03:01]}  Nf6 {[%clk 0:02:57]} 4. e5 {[%clk 0:03:00]}  Ne4 {[%clk 0:02:58]} 5. d4 {[%clk 0:02:59]}  Nxc3 {[%clk 0:02:57]} 6. bxc3 {[%clk 0:03:00]}  c5 {[%clk 0:02:55]} 7. c4 {[%clk 0:02:59]}  cxd4 {[%clk 0:02:49]} 8. Qxd4 {[%clk 0:02:58]}  e6 {[%clk 0:02:47]} 9. cxd5 {[%clk 0:02:58]}  exd5 {[%clk 0:02:41]} 10. Bb5+ {[%clk 0:02:57]}  Nc6 {[%clk 0:02:39]} 11. O-O {[%clk 0:02:56]}  Be6 {[%clk 0:02:37]} 12. Ng5 {[%clk 0:02:41]}  a6 {[%clk 0:01:58]} 13. Bxc6+ {[%clk 0:02:35]}  bxc6 {[%clk 0:01:59]} 14. Nxe6 {[%clk 0:02:19]}  fxe6 {[%clk 0:01:59]} 15. c4 {[%clk 0:02:18]}  c5 {[%clk 0:01:59]} 16. Qg4 {[%clk 0:02:18]}  Qd7 {[%clk 0:01:55]} 17. cxd5 {[%clk 0:02:17]}  exd5 {[%clk 0:01:47]} 18. e6 {[%clk 0:02:16]}  Qe7 {[%clk 0:01:45]} 19. Qa4+ {[%clk 0:02:14]}  Kd8 {[%clk 0:01:42]} 20. Bg5 {[%clk 0:02:15]} 1-0


[Site "https://www.chess.com"]